bitfinex/quotes_SOLUSD_20250315
["timestamp","ask_amount","ask_price","bid_price","bid_amount"]
[1742003667565,0.03,133.54,133.53,88.38012314]
[1742003671963,0.03,133.54,133.53,80.6069]
[1742003678169,0.03,133.54,133.53,107.029772]
[1742003680168,20.83070829,133.61,133.58,7.4861]
[1742003680169,11.72900829,133.61,133.58,7.4861]
[1742003680393,11.72900829,133.61,133.58,113.3253]
[1742003680667,11.72900829,133.61,133.59,0.28432314]
[1742003681551,11.72900829,133.61,133.6,7.76932314]
[1742003681954,13.4749711,133.64,133.6,7.76932314]
[1742003682266,6.1844,133.65,133.6,88.31322314]
[1742003683175,11.72900829,133.67,133.61,18.933972]
[1742003683375,11.72900829,133.67,133.61,99.477872]
[1742003684975,0.03,133.68,133.61,99.477872]
[1742003685175,0.03,133.68,133.63,0.28432314]
[1742003685388,0.03,133.68,133.64,6.58]
[1742003685555,0.03,133.68,133.64,87.1239]
[1742003688288,0.03,133.68,133.66,0.28432314]
[1742003689152,0.03,133.68,133.67,7.76542314]
[1742003689477,0.03,133.68,133.67,88.30932314]
[1742003691270,0.03,133.68,133.67,106.958972]
[1742003692396,0.03,133.68,133.67,80.5439]
[1742003693362,0.03,133.68,133.67,88.025]
[1742003694383,0.03,133.68,133.67,80.5439]
[1742003695089,0.03,133.68,133.67,88.025]
[1742003695273,0.03,133.68,133.67,88.30932314]
[1742003698192,0.10302113,133.74,133.68,80.79822314]
[1742003698388,0.10302113,133.74,133.68,216.89822314]
[1742003698589,0.10302113,133.74,133.7,0.28432314]
[1742003698772,0.10302113,133.74,133.72,0.28432314]
[1742003698972,0.10302113,133.74,133.72,80.79822314]
[1742003700195,0.10302113,133.74,133.73,7.76202314]
[1742003700698,0.10302113,133.74,133.73,88.27592314]
[1742003701399,0.10302113,133.74,133.73,87.9916]
[1742003708179,0.10302113,133.74,133.73,99.447872]
[1742003708487,0.03,133.8,133.74,18.933972]
[1742003708695,0.03,133.8,133.74,235.547872]
[1742003709779,0.03,133.8,133.77,0.14216157]
[1742003709988,0.03,133.8,133.78,6.56]
[1742003711773,0.03,133.8,133.79,7.4744]
[1742003712798,0.03,133.8,133.79,26.408372]
[1742003713098,0.03,133.8,133.79,106.922272]
[1742003713299,0.0001,133.81,133.8,99.417872]
[1742003713682,0.0001,133.81,133.8,100.53825628]
[1742003713998,0.0001,133.81,133.8,108.01205628]
[1742003714295,0.0001,133.82,133.81,0.28432314]
[1742003714701,0.0001,133.82,133.81,18.933972]
[1742003715180,2.6638,133.89,133.81,18.933972]
[1742003715181,2.6638,133.89,133.81,155.033972]
[1742003715382,6.4864,133.9,133.81,235.517872]
[1742003716383,6.4864,133.9,133.83,0.28432314]
[1742003716701,27.34473827,133.9,133.85,0.28432314]
[1742003716896,27.34473827,133.9,133.85,80.76822314]
[1742003717080,6.4864,133.9,133.85,80.76822314]
[1742003718781,6.4864,133.9,133.86,7.4704]
[1742003719603,6.4864,133.9,133.85,88.23912314]
[1742003719902,34.81303827,133.9,133.85,88.23912314]
[1742003721075,20.85833827,133.89,133.85,80.4839]
[1742003721698,0.03,133.91,133.86,18.933972]
[1742003723187,0.03,133.91,133.87,7.75422314]
[1742003726417,20.88833827,133.91,133.87,7.4699]
[1742003726706,20.85833827,133.9,133.87,7.4699]
[1742003727010,20.85833827,133.9,133.87,87.9538]
[1742003727191,20.88833827,133.91,133.87,87.9538]
[1742003727707,20.85833827,133.89,133.85,80.4839]
[1742003728013,20.88833827,133.88,133.85,80.4839]
[1742003728387,0.03,133.88,133.85,87.9548]
[1742003729307,0.03,133.88,133.85,80.4839]
[1742003729499,20.88833827,133.88,133.85,80.4839]
[1742003731488,20.88833827,133.88,133.85,87.9548]
[1742003731702,20.88833827,133.88,133.85,80.4839]
[1742003731907,28.35773827,133.88,133.85,80.4839]
[1742003732427,0.03,133.91,133.89,18.933972]
[1742003732715,0.03,133.94,133.91,18.933972]
[1742003733010,0.03,133.94,133.91,80.4539]
[1742003733394,0.03,133.94,133.92,7.4671]
[1742003733907,0.03,133.94,133.91,87.9215]
[1742003734807,0.03,133.94,133.9,14.1682]
[1742003736492,40.88833827,133.94,133.9,14.1682]
[1742003737390,20.03,133.94,133.9,14.1682]
[1742003738713,20.03,133.94,133.9,94.6221]
[1742003739100,40.88833827,133.94,133.9,94.6221]
[1742003739399,6.0455,133.91,133.88,80.4539]
[1742003740392,20.85833827,133.92,133.88,87.1939]
[1742003740892,20.85833827,133.92,133.88,94.6631]
[1742003742914,23.30993827,133.93,133.88,94.6631]
[1742003745915,0.03,133.94,133.89,0.28432314]
[1742003746219,20.88833827,133.94,133.9,7.4682]
[1742003746603,20.85833827,133.93,133.89,88.06466157]
[1742003746990,20.85833827,133.91,133.89,80.4539]
[1742003747195,20.85833827,133.9,133.86,80.4539]
[1742003747395,20.85833827,133.88,133.86,80.4539]
[1742003748406,28.32713827,133.89,133.86,80.4539]
[1742003748813,20.85833827,133.89,133.86,80.4539]
[1742003749013,20.85833827,133.9,133.86,80.4539]
[1742003749806,20.85833827,133.88,133.86,80.4539]
[1742003750595,28.32773827,133.88,133.86,80.4539]
[1742003750797,20.85833827,133.87,133.86,80.4539]
[1742003751221,20.85833827,133.87,133.83,94.87116157]
[1742003751422,28.32773827,133.88,133.83,94.87116157]
[1742003751803,28.32773827,133.88,133.83,94.729]
[1742003752420,20.85833827,133.89,133.84,7.75572314]
[1742003754825,28.32713827,133.89,133.84,7.75572314]
[1742003755022,20.85833827,133.88,133.84,7.75572314]
[1742003756121,0.03,133.94,133.88,100.73822314]
[1742003756325,0.03,133.94,133.91,0.14216157]
[1742003756515,0.03,133.94,133.92,0.14216157]
[1742003756716,0.03,133.94,133.89,87.2139]
[1742003757021,0.03,133.94,133.9,0.28432314]
[1742003757225,0.03,133.94,133.9,1.40409793]
[1742003757426,0.03,133.94,133.9,20.05374679]
[1742003758224,0.03,133.94,133.91,7.4677]
[1742003764028,0.03,133.94,133.92,26.400772]
[1742003766731,0.03,133.94,133.92,107.97423882]
[1742003768827,0.03,133.94,133.92,106.854672]
[1742003769018,0.03,133.94,133.92,88.20502314]
[1742003769942,0.03,133.94,133.92,87.9207]
[1742003780542,0.03,133.94,133.93,0.28432314]
[1742003781551,0.03,133.94,133.93,7.00432314]
[1742003782437,0.03,133.94,133.93,14.47082314]
[1742003784452,0.03,133.94,133.93,14.1865]
[1742003786342,0.03,133.94,133.93,33.120472]
[1742003786649,2.5665426,133.97,133.94,99.357872]
[1742003786829,2.5665426,133.97,133.95,18.933972]
[1742003788329,2.5665426,133.97,133.96,26.11454886]
[1742003791549,2.5665426,133.97,133.96,106.53844886]
[1742003791843,4.26e-05,133.97,133.96,106.822772]
[1742003797356,20.81989599,134.02,133.99,0.28432314]
[1742003797535,20.81989599,134.02,134.0,6.68]
[1742003798761,20.78989599,134.01,134.0,6.68]
[1742003801350,30.78839599,134.01,133.99,80.4238574]
[1742003801662,20.78989599,134.0,133.99,80.4238574]
[1742003803260,20.78989599,134.0,133.97,7.4643]
[1742003806178,2.5364,134.01,133.97,7.4643]
[1742003806378,23.32629599,134.01,133.97,7.4643]
[1742003806574,20.78989599,134.0,133.97,7.4643]
[1742003807270,23.32629599,134.01,133.97,7.4643]
[1742003808277,15.84127058,134.01,133.97,7.4643]
[1742003808754,2.5364,134.01,133.97,7.4643]
[1742003808956,15.84127058,134.01,133.97,7.4643]
[1742003809257,15.84127058,134.01,133.97,87.8881574]
[1742003810052,13.30487058,134.0,133.97,87.8881574]
[1742003811069,19.38807058,133.98,133.96,0.063]
[1742003811255,13.30487058,133.97,133.96,0.063]
[1742003814359,20.76917058,133.97,133.96,0.063]
[1742003816969,13.30487058,133.97,133.96,0.063]
[1742003820691,13.30487058,133.99,133.96,0.063]
[1742003820991,13.30487058,133.99,133.96,80.4868574]
[1742003821663,13.30487058,133.99,133.97,7.4643]
[1742003822463,13.30487058,134.0,133.97,7.4643]
[1742003822664,13.30487058,134.0,133.97,14.0843]
[1742003823077,13.33487058,134.01,133.98,0.28432314]
[1742003823287,0.03,134.01,133.98,80.56601897]
[1742003823787,0.03,134.01,133.99,7.4632]
[1742003824786,13.33487058,134.01,133.98,88.02951897]
[1742003824966,13.30487058,134.0,133.98,80.4238574]
[1742003825167,0.03,134.01,133.98,87.8875574]
[1742003825385,13.33487058,134.01,133.98,87.8875574]
[1742003825782,0.03,134.0,133.98,87.8875574]
[1742003827587,13.33487058,134.0,133.98,87.8875574]
[1742003827882,13.30487058,133.99,133.98,80.4238574]
[1742003828778,13.30487058,133.99,133.97,0.063]
[1742003828963,13.30487058,133.98,133.97,0.063]
[1742003829472,13.30487058,133.98,133.97,7.5273]
[1742003829788,13.30487058,133.99,133.97,7.5273]
[1742003830786,13.33487058,134.0,133.97,7.5273]
[1742003832478,13.30487058,133.98,133.97,80.4868574]
[1742003834694,13.30487058,133.99,133.97,87.9511574]
[1742003834987,13.30487058,133.98,133.97,80.4868574]
[1742003838485,13.30487058,133.98,133.97,0.063]
[1742003838987,20.76867058,133.98,133.97,0.063]
[1742003839169,23.37647058,133.98,133.97,0.063]
[1742003839370,76.5959529,133.98,133.97,0.063]
[1742003839787,23.37647058,133.98,133.97,0.063]
[1742003844392,15.91267058,133.98,133.97,0.063]
[1742003845480,23.37647058,133.98,133.97,0.063]
[1742003849999,23.40647058,133.98,133.97,0.063]
[1742003863807,76.6259529,133.98,133.97,0.063]
[1742003864709,20.0,133.93,133.88,80.4238574]
[1742003864915,33.30487058,133.93,133.88,80.4238574]
[1742003865911,7.4671,133.92,133.88,80.4238574]
[1742003866115,13.30487058,133.9,133.88,80.4238574]
[1742003869112,13.30487058,133.91,133.88,87.8931574]
[1742003869410,13.30487058,133.95,133.89,6.84432314]
[1742003869619,33.30487058,133.94,133.89,87.26818054]
[1742003869810,13.30487058,133.94,133.89,87.26818054]
[1742003870015,33.30487058,133.94,133.9,7.4682]
[1742003870710,13.30487058,133.94,133.9,7.4682]
[1742003870912,33.30487058,133.94,133.9,7.4682]
[1742003872120,13.30487058,133.94,133.9,87.8920574]
[1742003873525,13.30487058,133.95,133.9,87.8920574]
[1742003876417,13.30487058,133.92,133.9,87.8920574]
[1742003876721,13.30487058,133.94,133.9,87.8920574]
[1742003877101,13.30487058,133.93,133.9,87.8920574]
[1742003879502,13.30487058,133.94,133.9,87.8920574]
[1742003880601,13.30487058,133.93,133.9,87.8920574]
[1742003881207,13.30487058,133.92,133.9,80.4238574]
[1742003881410,13.30487058,133.91,133.9,80.4238574]
[1742003881617,13.30487058,133.92,133.9,80.4238574]
[1742003882407,13.30487058,133.92,133.88,87.0468574]
[1742003882608,13.30487058,133.94,133.89,7.4687]
[1742003883129,13.30487058,133.93,133.89,7.4687]
[1742003884233,13.30487058,133.94,133.89,7.4687]
[1742003888412,13.30487058,133.94,133.89,87.8925574]
[1742003889229,20.0,133.93,133.89,87.8925574]
[1742003890423,20.77087058,133.94,133.89,87.8925574]
[1742003890601,13.30487058,133.93,133.89,87.8925574]
[1742003891007,20.77177058,133.93,133.89,80.4238574]
[1742003891220,13.30487058,133.91,133.89,80.4238574]
[1742003892126,13.30487058,133.9,133.88,0.063]
[1742003892433,13.30487058,133.91,133.88,0.063]
[1742003892929,33.30487058,133.9,133.88,0.063]
[1742003893709,20.0,133.9,133.88,0.063]
[1742003894739,13.30487058,133.89,133.88,0.063]
[1742003895121,13.30487058,133.9,133.88,0.063]
[1742003896413,20.77317058,133.9,133.88,0.063]
[1742003896814,33.30487058,133.89,133.88,0.063]
[1742003898731,40.77367058,133.89,133.88,0.063]
[1742003899114,33.30487058,133.89,133.88,0.063]
[1742003901541,40.77367058,133.89,133.88,0.063]
[1742003906738,33.30487058,133.89,133.88,0.063]
[1742003908027,13.30487058,133.89,133.88,0.063]
[1742003908228,13.30487058,133.91,133.88,0.063]
[1742003909546,0.03,133.96,133.94,18.933972]
[1742003909748,0.03,133.98,133.96,0.14216157]
[1742003910435,0.03,133.98,133.97,1.26136925]
[1742003910641,0.03,133.98,133.97,81.68522665]
[1742003910958,0.03,133.98,133.97,100.47703708]
[1742003911540,0.03,133.98,133.97,107.94133708]
[1742003912764,0.03,133.98,133.97,87.8881574]
[1742003914337,0.0001,133.98,133.97,106.8221294]
[1742003925260,0.0001,133.98,133.97,113.4021294]
[1742003928765,0.0001,133.98,133.97,106.8221294]
[1742003928965,0.0001,133.98,133.97,113.3821294]
[1742003940877,0.0001,133.98,133.97,94.4481574]
[1742003941357,0.0001,133.98,133.97,87.8881574]
[1742003941564,0.0001,133.98,133.97,94.4481574]
[1742003946575,0.03,134.01,133.99,0.28432314]
[1742003946762,0.03,134.01,133.99,18.933972]
[1742003948278,0.03,134.01,133.99,26.397172]
[1742003949954,0.03,134.01,133.99,106.8209294]
[1742003950158,0.0001,134.0,133.99,106.8209294]
[1742003951377,0.03,134.05,133.99,125.4790294]
[1742003951578,0.03,134.05,133.99,261.5790294]
[1742003952662,0.03,134.05,133.99,298.8952294]
[1742003953062,0.03,134.05,133.99,261.5790294]
[1742003953361,0.03,134.05,134.01,18.933972]
[1742003953581,0.03,134.05,134.03,18.933972]
[1742003953781,0.03,134.05,134.03,99.3577294]
[1742003954677,0.03,134.05,134.03,106.8185294]
[1742003956363,0.03,134.05,134.03,80.4237574]
[1742003960868,13.33487058,134.05,134.03,80.4237574]
[1742003961086,20.79527058,134.05,134.03,80.4237574]
[1742003961678,13.33487058,134.05,134.03,80.4237574]
[1742003961988,0.03,134.05,134.03,80.4237574]
[1742003964084,13.33487058,134.05,134.03,80.4237574]
[1742003965574,0.03,134.05,134.03,80.4237574]
[1742003968891,0.03,134.05,134.03,87.8843574]
[1742003976986,13.33487058,134.05,134.03,80.4237574]
[1742003977188,0.03,134.05,134.03,87.8846574]
[1742003990618,13.30487058,134.04,134.03,80.4237574]
[1742003991012,13.30487058,134.04,134.02,0.063]
[1742003999760,13.30487058,134.03,134.02,0.063]
[1742004004155,7.4606,134.04,134.02,0.063]
[1742004004360,13.30487058,134.03,134.02,0.063]
[1742004007653,20.76587058,134.03,134.02,0.063]
[1742004009255,20.79587058,134.03,134.02,0.063]
[1742004010545,13.33487058,134.03,134.02,0.063]
[1742004010944,0.03,134.03,134.02,0.063]
[1742004011144,13.33487058,134.03,134.02,0.063]
[1742004012461,0.03,134.03,134.02,0.063]
[1742004013147,0.03,134.03,134.02,87.9482574]
[1742004013551,0.03,134.03,134.02,88.23258054]
[1742004017544,0.03,134.03,134.02,88.09041897]
[1742004017751,0.03,134.03,134.02,88.23258054]
[1742004024159,0.03,134.03,134.02,87.9482574]
[1742004024360,0.03,134.03,134.02,80.4867574]
[1742004024768,13.33487058,134.03,134.02,80.4867574]
[1742004024961,13.33487058,134.03,134.02,0.063]
[1742004027583,20.79587058,134.03,134.02,0.063]
[1742004029400,13.33487058,134.03,134.02,0.063]
[1742004030205,20.79587058,134.03,134.02,0.063]
[1742004031100,13.33487058,134.03,134.02,0.063]
[1742004031893,0.03,134.03,134.02,0.063]
[1742004032800,13.33487058,134.03,134.02,0.063]
[1742004033401,12.83487058,134.03,134.02,0.063]
[1742004034903,13.30487058,134.04,134.02,0.063]
[1742004035402,13.33487058,134.05,134.02,0.063]
[1742004036583,13.30487058,134.04,134.02,0.063]
[1742004037209,13.30487058,134.03,134.02,0.063]
[1742004039203,20.76587058,134.04,134.02,0.063]
[1742004039410,13.30487058,134.04,134.02,0.063]
[1742004039600,20.76527058,134.04,134.02,0.063]
[1742004040107,13.30487058,134.03,134.02,0.063]
[1742004041409,20.76587058,134.03,134.02,0.063]
[1742004043416,20.79587058,134.03,134.02,0.063]
[1742004048120,13.33487058,134.03,134.02,0.063]
[1742004048819,20.79587058,134.03,134.02,0.063]
[1742004050128,20.03,134.03,134.02,0.063]
[1742004050327,33.33487058,134.03,134.02,0.063]
[1742004054823,40.79587058,134.03,134.02,0.063]
[1742004064931,22.9985,133.99,133.96,0.063]
[1742004065112,13.30487058,133.97,133.96,0.063]
[1742004066814,20.76917058,133.97,133.96,0.063]
[1742004071847,20.0,133.94,133.9,82.9616574]
[1742004072137,13.30487058,133.92,133.9,82.9616574]
[1742004072738,13.30487058,133.92,133.88,7.5321]
[1742004072739,20.0,133.94,133.88,0.063]
[1742004072740,20.0,133.89,133.88,0.063]
[1742004072926,33.30487058,133.89,133.88,0.063]
[1742004073114,40.77367058,133.89,133.88,0.063]
[1742004079445,59.44567058,133.89,133.83,0.063]
[1742004079646,13.30487058,133.84,133.83,0.063]
[1742004081966,33.30487058,133.87,133.83,0.063]
[1742004082545,13.30487058,133.87,133.83,80.4867574]
[1742004082850,13.30487058,133.9,133.86,0.28432314]
[1742004083055,13.30487058,133.92,133.87,6.56]
[1742004083359,13.30487058,133.93,133.88,0.28432314]
[1742004083646,13.30487058,133.92,133.89,7.4688]
[1742004084630,13.30487058,133.9,133.88,87.8928574]
[1742004084828,13.30487058,133.9,133.88,80.4237574]
[1742004085028,13.30487058,133.89,133.87,6.56]
[1742004085345,13.30487058,133.89,133.87,14.0298]
[1742004085542,13.30487058,133.9,133.87,14.0298]
[1742004085947,33.30487058,133.91,133.87,14.0298]
[1742004087537,13.30487058,133.9,133.87,14.0298]
[1742004089138,33.30487058,133.91,133.87,14.0298]
[1742004089630,20.0,133.91,133.87,14.0298]
[1742004089831,33.30487058,133.91,133.87,14.0298]
[1742004090436,13.30487058,133.91,133.87,32.7046]
[1742004090641,13.30487058,133.92,133.87,32.7046]
[1742004090842,13.30487058,133.92,133.87,32.7676]
[1742004091750,13.30487058,133.93,133.88,25.318872]
[1742004092057,33.30487058,133.94,133.88,105.7426294]
[1742004092230,13.30487058,133.93,133.88,105.7426294]
[1742004092431,20.0,133.95,133.88,105.7426294]
[1742004092648,33.30487058,133.93,133.88,87.09298054]
[1742004093730,33.30487058,133.93,133.89,7.4688]
[1742004094852,13.33487058,133.96,133.91,2.6027]
[1742004095043,13.33487058,133.96,133.92,6.56]
[1742004096040,0.03,133.96,133.93,7.4665]
[1742004096246,0.03,133.96,133.93,26.1329]
[1742004096635,0.03,133.96,133.94,18.933972]
[1742004096860,0.03,133.96,133.94,105.7426294]
[1742004097953,0.03,133.96,133.95,26.11504886]
[1742004098260,0.03,133.96,133.95,32.67504886]
[1742004099750,0.03,133.96,133.95,32.959372]
[1742004100752,0.03,133.96,133.95,6.84432314]
[1742004101252,0.03,133.96,133.95,14.30972314]
[1742004102464,0.03,133.96,133.95,87.26808054]
[1742004102843,0.03,133.96,133.95,94.73348054]
[1742004104875,0.03,133.96,133.95,87.26808054]
[1742004105053,0.03,133.96,133.95,86.9837574]
[1742004106465,0.03,133.96,133.95,94.4491574]
[1742004106857,0.03,133.96,133.95,87.8891574]
[1742004107163,0.03,133.96,133.95,86.9837574]
[1742004107662,20.81948509,133.96,133.89,7.4688]
[1742004107865,20.78948509,133.93,133.89,94.4525574]
[1742004108076,20.78948509,133.91,133.89,80.4237574]
[1742004108364,20.78948509,133.91,133.87,94.5163574]
[1742004110555,20.78948509,133.91,133.87,87.9563574]
[1742004112869,20.78948509,133.91,133.87,80.4867574]
[1742004112870,20.78948509,133.89,133.87,80.4867574]
[1742004113053,20.78948509,133.89,133.87,0.063]
[1742004114266,20.78948509,133.88,133.87,0.063]
[1742004114765,20.78948509,133.88,133.83,0.063]
[1742004114981,20.78948509,133.84,133.83,0.063]
[1742004117902,40.78948509,133.85,133.83,0.063]
[1742004119517,20.78948509,133.88,133.83,0.063]
[1742004119695,20.78948509,133.88,133.83,87.0467574]
[1742004120067,20.78948509,133.88,133.84,0.14216157]
[1742004120269,20.78948509,133.89,133.84,80.56591897]
[1742004120592,20.78948509,133.87,133.84,80.4237574]
[1742004120993,20.78948509,133.88,133.85,7.471]
[1742004121205,20.78948509,133.89,133.85,7.471]
[1742004122801,20.78948509,133.88,133.85,7.471]
[1742004123608,20.78948509,133.89,133.85,7.471]
[1742004123997,20.78948509,133.87,133.84,87.8950574]
[1742004124176,34.43258509,133.91,133.84,87.8950574]
[1742004124177,20.78948509,133.85,133.84,80.4237574]
[1742004124378,20.78948509,133.86,133.83,14.0949]
[1742004124599,26.96488509,133.91,133.83,14.0949]
[1742004124803,20.78948509,133.89,133.84,0.14216157]
[1742004125391,6.1754,133.91,133.85,7.471]
[1742004125583,20.78948509,133.89,133.85,7.471]
[1742004125790,20.78948509,133.88,133.85,7.471]
[1742004126700,13.6431,133.91,133.85,7.471]
[1742004126896,20.78948509,133.88,133.85,7.471]
[1742004128501,20.78948509,133.89,133.85,7.471]
[1742004129302,20.78948509,133.91,133.86,0.28432314]
[1742004129501,0.03,133.88,133.86,80.70808054]
[1742004129713,0.03,133.88,133.87,7.4699]
[1742004130412,0.03,133.88,133.87,7.75422314]
[1742004132025,0.03,133.88,133.87,7.4699]
[1742004132195,0.03,133.88,133.86,88.03611897]
[1742004132394,0.03,133.88,133.86,87.8939574]
[1742004132595,20.78948509,133.87,133.86,80.4237574]
[1742004133016,20.78948509,133.87,133.83,80.4867574]
[1742004133309,20.78948509,133.84,133.83,0.063]
[1742004135812,20.78948509,133.85,133.83,0.063]
[1742004138113,20.78948509,133.86,133.83,0.063]
[1742004138323,0.03,133.88,133.83,80.4867574]
[1742004138630,20.81948509,133.88,133.83,80.4867574]
[1742004139742,20.81948509,133.88,133.84,7.4716]
[1742004140237,0.03,133.88,133.84,7.4716]
[1742004140440,0.03,133.88,133.85,0.14216157]
[1742004140726,0.03,133.88,133.85,87.12591897]
[1742004141839,0.03,133.88,133.86,7.4704]
[1742004142059,0.03,133.88,133.86,87.8941574]
[1742004144641,0.03,133.88,133.87,0.14216157]
[1742004145725,20.81948509,133.88,133.84,87.8950574]
[1742004145935,20.78948509,133.86,133.84,80.4237574]
[1742004146724,20.78948509,133.85,133.84,80.4237574]
[1742004148127,10.1481,133.87,133.84,80.4237574]
[1742004148128,20.78948509,133.86,133.84,80.4237574]
[1742004148333,20.78948509,133.87,133.84,80.4237574]
[1742004150247,20.78948509,133.87,133.84,87.8951574]
[1742004150454,20.81948509,133.88,133.84,87.8951574]
[1742004150843,20.78948509,133.87,133.84,87.8951574]
[1742004151148,20.78948509,133.87,133.84,80.4237574]
[1742004151535,20.78948509,133.87,133.84,87.8952574]
[1742004152057,20.81948509,133.88,133.84,87.8952574]
[1742004152431,20.78948509,133.87,133.84,87.8952574]
[1742004153771,20.81948509,133.88,133.84,87.8952574]
[1742004155146,20.78948509,133.87,133.84,87.8952574]
[1742004155351,20.78948509,133.87,133.84,80.4237574]
[1742004155949,20.78948509,133.86,133.84,80.4237574]
[1742004157860,28.26008509,133.86,133.84,80.4237574]
[1742004158046,20.78948509,133.85,133.84,80.4237574]
[1742004158239,20.78948509,133.85,133.83,0.063]
[1742004158443,20.78948509,133.86,133.83,7.5351]
[1742004162764,20.78948509,133.85,133.83,0.063]
[1742004163344,0.03,133.88,133.87,0.28432314]
[1742004163549,0.03,133.88,133.87,105.9177294]
[1742004164558,0.03,133.88,133.87,112.62518309]
[1742004164766,13.38989151,133.93,133.88,18.64964886]
[1742004164964,0.03,133.93,133.88,98.59528309]
[1742004166472,0.03,133.93,133.89,7.4688]
[1742004167972,0.03,133.93,133.89,26.1408]
[1742004168348,0.03,133.93,133.9,20.630072]
[1742004168569,0.03,133.93,133.92,18.933972]
[1742004168867,0.03,133.93,133.92,6.56]
[1742004170170,0.03,133.93,133.92,14.0271]
[1742004170367,0.03,133.93,133.9,87.41353423]
[1742004172675,20.81948509,133.93,133.9,79.94563423]
[1742004172879,20.81948509,133.93,133.9,87.41363423]
[1742004173275,0.03,133.93,133.9,87.41363423]
[1742004175375,0.03,133.93,133.91,18.933972]
[1742004176167,0.03,133.93,133.91,98.87960623]
[1742004176367,0.03,133.93,133.91,105.32570623]
[1742004176580,0.03,133.96,133.92,1.6961]
[1742004176773,0.03,133.96,133.92,81.64173423]
[1742004176981,0.03,133.96,133.94,18.933972]
[1742004177165,0.03,133.96,133.95,6.56]
[1742004177365,0.03,133.96,133.95,86.50563423]
[1742004177665,0.03,133.96,133.95,105.43960623]
[1742004178061,0.03,133.96,133.95,86.50563423]
[1742004178371,0.03,133.96,133.95,79.94563423]
[1742004178575,0.03,133.96,133.93,87.41213423]
[1742004179171,20.81948509,133.96,133.93,79.94563423]
[1742004179688,0.03,133.96,133.93,87.41213423]
[1742004180571,0.03,133.96,133.94,18.933972]
[1742004181188,0.03,133.96,133.95,27.946672]
[1742004181387,0.03,133.96,133.95,107.89230623]
[1742004183276,0.06937007,134.01,133.98,18.933972]
[1742004183492,0.06937007,134.01,133.99,6.6]
[1742004185700,20.85885516,134.01,133.98,86.58553423]
[1742004185902,0.06937007,134.01,133.98,86.58553423]
[1742004187076,0.06937007,134.01,133.98,94.04923423]
[1742004187474,0.06937007,134.01,133.98,86.58553423]
[1742004187679,20.85885516,134.01,133.98,86.58553423]
[1742004187895,0.06937007,134.01,133.98,94.04923423]
[1742004189396,20.78948509,133.99,133.95,79.94553423]
[1742004189579,20.78948509,133.98,133.95,87.41093423]
[1742004189781,20.78948509,133.98,133.95,79.94553423]
[1742004190384,20.78948509,133.96,133.95,79.94553423]
[1742004190583,20.78948509,133.96,133.93,86.66853423]
[1742004190779,20.78948509,133.98,133.94,18.933972]
[1742004191695,20.78948509,133.98,133.94,26.399472]
[1742004191991,20.78948509,133.99,133.94,26.399472]
[1742004192311,20.88885516,134.01,133.94,106.34500623]
[1742004192508,0.09937007,134.01,133.94,132.5049291]
[1742004192811,20.88885516,134.01,133.94,267.48570623]
[1742004193506,0.09937007,134.01,133.94,267.48570623]
[1742004193815,0.09937007,134.01,133.98,0.28432314]
[1742004194011,0.09937007,134.01,134.0,18.933972]
[1742004194310,0.09937007,134.01,134.0,98.87950623]
[1742004194517,0.09937007,134.01,134.0,99.99829976]
[1742004195008,0.03,134.02,134.0,99.99829976]
[1742004195009,0.03,134.02,134.01,98.63797459]
[1742004195310,0.03,134.02,134.01,98.78013616]
[1742004195723,0.03,134.02,134.01,87.30826416]
[1742004195939,0.03,134.02,134.01,79.84616416]
[1742004196711,20.81948509,134.02,134.01,79.84616416]
[1742004198228,0.03,134.02,133.99,6.68]
[1742004198397,0.03,134.02,133.96,79.84616416]
[1742004198398,33.25492222,134.0,133.96,79.84616416]
[1742004198598,33.25492222,133.98,133.96,79.84616416]
[1742004200119,33.25492222,134.01,133.96,87.31086416]
[1742004200810,33.28492222,134.02,133.97,18.933972]
[1742004201523,33.25492222,134.01,133.98,6.68]